fUSD/lending_fUSD_20241004
["ID","MTS","AMOUNT","RATE_DAILY","PERIOD"]
[339851819,1728065452000,-221.06890707,0.00038904,120]
[339851820,1728065452042,-278.93109293,0.00038904,120]
[339851821,1728065452052,-334.21189873,0.00038904,120]
[339851822,1728065452075,-165.78810127,0.00038904,120]
[339851823,1728065452084,-500.0,0.00038904,120]
[339851824,1728065452094,-500.0,0.00038904,120]
[339851825,1728065452103,-500.0,0.00038904,120]
[339851826,1728065452112,-500.0,0.00038904,120]
[339851827,1728065452122,-500.0,0.00038904,120]
[339851828,1728065452131,-500.0,0.00038904,120]
[339851829,1728065452141,-500.0,0.00038904,120]
[339851830,1728065452152,-191.99631859,0.00038904,120]
[339851831,1728065452162,-500.0,0.00038904,120]
[339851832,1728065452172,-500.0,0.00038904,120]
[339851833,1728065452182,-822.64,0.00038904,120]
[339851834,1728065452192,-601.55,0.00038904,120]
[339851835,1728065452201,-500.0,0.00038904,120]
[339851836,1728065452211,-500.0,0.00038904,120]
[339851837,1728065452220,-500.0,0.00038904,120]
[339851838,1728065452230,-118.11005704,0.00038904,120]
[339851839,1728065452807,-660.28994296,0.00038904,120]
[339851840,1728065452817,-500.0,0.00038904,120]
[339851841,1728065452826,-862.05,0.00038904,120]
[339851842,1728065452836,-666.31,0.00038904,120]
[339851843,1728065452845,-394.30005704,0.00038904,120]
[339851844,1728065452857,-105.69994296,0.00038904,120]
[339851845,1728065452866,-500.0,0.00038904,120]
[339851846,1728065452876,-500.0,0.00038904,120]
[339851847,1728065452885,-1642.01,0.00038904,120]
[339851848,1728065452895,-500.0,0.00038904,120]
[339851849,1728065452904,-500.0,0.00038904,120]
[339851850,1728065452914,-500.0,0.00038904,120]
[339851851,1728065452923,-500.0,0.00038904,120]
[339851852,1728065452932,-505.70905114,0.00038904,120]
[339851853,1728065452942,-500.0,0.00038904,120]
[339851854,1728065452951,-500.0,0.00038904,120]
[339851855,1728065452961,-535.35,0.00038904,120]
[339851856,1728065452970,-1735.41,0.00038904,120]
[339851857,1728065452979,-500.0,0.00038904,120]
[339851858,1728065452989,-500.0,0.00038904,120]
[339851859,1728065452999,-854.2,0.00038904,120]
[339851860,1728065453008,-297.0035754,0.00038904,120]
[339851861,1728065453017,-942.16,0.00038904,120]
[339851862,1728065453026,-500.0,0.00038904,120]
[339851863,1728065453035,-1735.39,0.00038904,120]
[339851864,1728065453044,-500.0,0.00038904,120]
[339851865,1728065453054,-766.65,0.00038904,120]
[339851866,1728065453063,-500.0,0.00038904,120]
[339851867,1728065453072,-500.0,0.00038904,120]
[339851868,1728065453081,-500.0,0.00038904,120]
[339851869,1728065453091,-500.0,0.00038904,120]
[339851870,1728065453100,-500.0,0.00038904,120]
[339851871,1728065453109,-610.64113591,0.00038904,120]
[339851872,1728065453118,-500.0,0.00038904,120]
[339851873,1728065453127,-699.82,0.00038904,120]
[339851874,1728065453137,-500.0,0.00038904,120]
[339851875,1728065453147,-664.54,0.00038904,120]
[339851876,1728065453156,-500.0,0.00038904,120]
[339851877,1728065453166,-1010.53,0.00038904,120]
[339851878,1728065453176,-500.0,0.00038904,120]
[339851879,1728065453185,-500.0,0.00038904,120]
[339851880,1728065453194,-500.0,0.00038904,120]
[339851881,1728065453204,-504.85,0.00038904,120]
[339851882,1728065453213,-1409.17,0.00038904,120]
[339851883,1728065453223,-500.0,0.00038904,120]
[339851884,1728065453232,-500.0,0.00038904,120]
[339851885,1728065453241,-771.48409795,0.00038904,24]
[339851886,1728065453254,-637.58590205,0.00038904,24]
[339851887,1728065453268,-500.0,0.00038904,120]
[339851888,1728065453278,-500.0,0.00038904,120]
[339851889,1728065453287,-500.0,0.00038904,120]
[339851890,1728065453296,-58.31404153,0.00038904,120]
[339851891,1728065453309,-279.43239796,0.00038904,120]
[339851894,1728066272580,162.93,0.00010959,2]
[339851898,1728066353765,34628.48906578,0.0001287,2]
[339851899,1728066353787,50000.0,0.0001287,2]
[339851900,1728066353808,50000.0,0.0001287,2]
[339851901,1728066353831,64637.18075252,0.0001287,2]
[339851903,1728066479458,52867.60953547,0.00012899,2]
[339851904,1728066484505,2274.44985349,0.00010999,2]
[339851905,1728066497962,291.29716347,0.000125,2]
[339851927,1728066631994,-300.0,0.00019725,2]
[339851928,1728066632004,-150.0,0.00021384,2]
[339851932,1728066632129,-452.95368265,0.00021384,2]
[339851933,1728066632138,-299.90703795,0.00021484,2]
[339851934,1728066632149,-120.09296205,0.00021484,2]
[339851935,1728066632159,-147.85703795,0.00031548,30]
[339851936,1728066632177,-1139.07309805,0.00031548,30]
[339851937,1728066632187,-330.32,0.00034136,2]
[339851938,1728066632196,-1087.0,0.000345,4]
[339851939,1728066632205,-2251.21197858,0.000345,2]
[339851940,1728066632216,-2998.20515077,0.000345,2]
[339851941,1728066632227,-579.913739,0.000345,2]
[339851946,1728066638237,-600.0,0.000345,2]
[339851947,1728066638248,-2100.65791727,0.000345,2]
[339851948,1728066638263,-460.04,0.000345,2]
[339851949,1728066638274,-32966.76603345,0.000345,2]
[339851950,1728066638289,-825.89011892,0.000345,2]
[339851951,1728066638299,-1201.07485359,0.000345,2]
[339851952,1728066638310,-274.27572277,0.000345,2]
[339851960,1728066639998,-3238.33952541,0.000345,2]
[339851962,1728066640008,-221.986,0.00034986,40]
[339851963,1728066640017,-499.99,0.00034986,2]
[339851964,1728066640027,-321.89,0.00034986,15]
[339851965,1728066640037,-150.18,0.00035964,2]
[339851966,1728066640046,-151.70447459,0.00036052,2]
[339851967,1728066640057,-348.29552541,0.00036052,2]
[339851968,1728066640067,-1000.0,0.00036085,2]
[339851969,1728066640077,-250.0,0.00036126,120]
[339851970,1728066640087,-330.32,0.000364,2]
[339851971,1728066640096,-155.58,0.00036428,120]
[339851972,1728066640106,-157.09,0.00036444,120]
[339851973,1728066640116,-250.0,0.00036514,2]
[339851974,1728066640126,-108.71447459,0.00036519,2]
[339851975,1728066640140,-91.28552541,0.00036519,2]
[339851976,1728066640149,-586311.57437936,0.000366,10]
[339851977,1728066640160,-1011.83730598,0.000366,10]
[339851978,1728066640171,-804.51239305,0.000366,10]
[339852082,1728066643091,-3282.0027101,0.000343,5]
[339852083,1728066643278,-2496.9972899,0.000343,5]
[339852084,1728066643287,-3132.68676533,0.000366,10]
[339852085,1728066643304,-715.58487265,0.000366,10]
[339852086,1728066643316,-729.9999998,0.000366,10]
[339852088,1728066646382,-60132.23462241,0.000366,10]
[339852135,1728067832192,-318.45,0.0003483,2]
[339852136,1728067832319,-35.96,0.0003483,2]
[339852137,1728067832329,-1546.74112092,0.00034885,120]
[339852138,1728067832341,-387.12787908,0.00034885,120]
[339852139,1728067832349,-1425.15127954,0.000359,2]
[339852140,1728067832359,-701.0,0.00036,3]
[339852141,1728067832369,-3581.94280001,0.000366,10]
[339852142,1728067832449,-1276.33088317,0.000366,10]
[339852143,1728067832460,-1193.8058045,0.000366,10]
[339852144,1728067832472,-2331.32555382,0.000366,10]
[339852158,1728067838242,-1597.75521564,0.000366,10]
[339852159,1728067838255,-2402.24478436,0.000366,10]
[339852160,1728067838268,-995.56100201,0.000366,10]
[339852161,1728067838279,-9030.25868716,0.000366,10]
[339852162,1728067838291,-325.34937383,0.000366,10]
[339852163,1728067838373,-2630.8,0.000366,10]
[339852164,1728067838384,-2836.81795926,0.000366,10]
[339852165,1728067838412,-412.62879821,0.000366,10]
[339852166,1728067838424,-14623.75980472,0.000366,10]
[339852167,1728067838435,-14678.35613486,0.000366,10]
[339852176,1728067840198,-601.17853201,0.000366,10]
[339852177,1728067840210,-3117.27918834,0.000366,10]
[339852181,1728067840260,-847.57,0.000366,10]
[339852182,1728067840271,-1799.840521,0.000366,10]
[339852183,1728067840396,-23621.30595552,0.000366,10]
[339852184,1728067840405,-1500.0,0.00036623,2]
[339852185,1728067840415,-250.0,0.00036665,120]
[339852186,1728067840425,-18704.88,0.00036682,2]
[339852187,1728067840435,-200.0,0.00036703,2]
[339852188,1728067840445,-164.29,0.00036759,2]
[339852189,1728067840455,-200.0,0.0003679,2]
[339852190,1728067840465,-191.36,0.00036815,120]
[339852191,1728067840474,-800.0,0.00036815,2]
[339852192,1728067840485,-155.58,0.00036825,120]
[339852193,1728067840497,-354.41,0.00037094,2]
[339852194,1728067840508,-209.14,0.00037141,2]
[339852195,1728067840519,-164.15,0.00037141,2]
[339852196,1728067840528,-200.0,0.00037145,2]
[339852197,1728067840539,-177.588,0.0003717,47]
[339852198,1728067840548,-3800.96,0.00037596,2]
[339852199,1728067840558,-4036.0,0.00037608,117]
[339852200,1728067840568,-3500.0,0.000379,2]
[339852201,1728067840577,-150.0,0.000379,2]
[339852202,1728067840587,-167.35,0.00037992,2]
[339852204,1728067840597,-500.0,0.00038,2]
[339852205,1728067840608,-500.0,0.00038,2]
[339852206,1728067840617,-500.0,0.00038,2]
[339852207,1728067840627,-500.0,0.00038,2]
[339852208,1728067840637,-500.0,0.00038,2]
[339852209,1728067840646,-500.0,0.00038,2]
[339852210,1728067840655,-500.0,0.00038,2]
[339852211,1728067840665,-500.0,0.00038,2]
[339852212,1728067840675,-500.0,0.00038,2]
[339852213,1728067840686,-335.57,0.00038,2]
[339852214,1728067840696,-442.0665,0.00038256,2]
[339852215,1728067840706,-5472.08788284,0.00038256,15]
[339852216,1728067840715,-479.68061526,0.00038256,2]
[339852217,1728067840725,-27984.9730885,0.00038346,6]
[339852218,1728067840735,-500.0,0.00038356,120]
[339852219,1728067840744,-500.0,0.00038356,120]
[339852220,1728067840754,-500.0,0.00038356,120]
[339852221,1728067840764,-500.0,0.00038356,120]
[339852222,1728067840773,-500.0,0.00038356,120]
[339852223,1728067840783,-669.98,0.00038356,120]
[339852224,1728067840793,-500.0,0.00038356,120]
[339852225,1728067840803,-500.0,0.00038356,120]
[339852226,1728067840812,-500.0,0.00038356,120]
[339852227,1728067840822,-500.0,0.00038356,120]
[339852228,1728067840831,-500.0,0.00038356,120]
[339852229,1728067840841,-500.0,0.00038356,120]
[339852230,1728067840851,-500.0,0.00038356,120]
[339852231,1728067840860,-500.0,0.00038356,120]
[339852232,1728067840870,-500.0,0.00038356,120]
[339852233,1728067840880,-312.9935442,0.00038356,120]
[339852234,1728067840889,-500.0,0.00038356,120]
[339852235,1728067840899,-500.0,0.00038356,120]
[339852236,1728067840908,-500.0,0.00038356,120]
[339852237,1728067840918,-500.0,0.00038356,120]
[339852238,1728067840928,-500.0,0.00038356,120]
[339852239,1728067840938,-500.0,0.00038356,120]
[339852240,1728067840947,-500.0,0.00038356,120]
[339852241,1728067840957,-500.0,0.00038356,120]
[339852242,1728067840967,-500.0,0.00038356,120]
[339852243,1728067840978,-500.0,0.00038356,120]
[339852244,1728067840988,-500.0,0.00038356,120]
[339852245,1728067840998,-500.0,0.00038356,120]
[339852246,1728067841007,-611.57,0.00038356,120]
[339852247,1728067841016,-500.0,0.00038356,120]
[339852248,1728067841027,-499.34178836,0.00038356,120]
[339852249,1728067841038,-500.0,0.00038356,120]
[339852250,1728067841053,-500.0,0.00038356,120]
[339852251,1728067841066,-500.0,0.00038356,120]
[339852252,1728067841076,-561.61630705,0.00038356,120]
[339852253,1728067841087,-500.0,0.00038356,120]
[339852254,1728067841097,-500.0,0.00038356,120]
[339852255,1728067841107,-500.0,0.00038356,120]
[339852256,1728067841116,-500.0,0.00038356,120]
[339852257,1728067841126,-500.0,0.00038356,120]
[339852258,1728067841136,-610.02,0.00038356,120]
[339852259,1728067841145,-500.0,0.00038356,120]
[339852260,1728067841156,-572.76,0.00038356,120]
[339852261,1728067841167,-500.0,0.00038356,120]
[339852262,1728067841178,-500.0,0.00038356,120]
[339852263,1728067841188,-500.0,0.00038356,120]
[339852264,1728067841197,-500.0,0.00038356,120]
[339852265,1728067841207,-476.39384359,0.00038356,120]
[339852266,1728067841217,-500.0,0.00038356,120]
[339852267,1728067841227,-500.0,0.00038356,120]
[339852268,1728067841237,-500.0,0.00038356,120]
[339852269,1728067841248,-500.0,0.00038356,120]
[339852270,1728067841260,-500.0,0.00038356,120]
[339852271,1728067841269,-500.0,0.00038356,120]
[339852272,1728067841280,-500.0,0.00038356,120]
[339852273,1728067841295,-500.0,0.00038356,120]
[339852274,1728067841304,-500.0,0.00038356,120]
[339852275,1728067841314,-500.0,0.00038356,120]
[339852276,1728067841324,-500.0,0.00038356,120]
[339852277,1728067841333,-500.0,0.00038356,120]
[339852278,1728067841344,-500.0,0.00038356,120]
[339852279,1728067841353,-670.82,0.00038356,120]
[339852280,1728067841363,-500.0,0.00038356,120]
[339852281,1728067841372,-500.0,0.00038356,120]
[339852282,1728067841382,-500.0,0.00038356,120]
[339852283,1728067841391,-500.0,0.00038356,120]
[339852284,1728067841401,-500.0,0.00038356,120]
[339852285,1728067841411,-500.0,0.00038356,120]
[339852286,1728067841421,-500.0,0.00038356,120]
[339852287,1728067841431,-395.95914688,0.00038356,120]
[339852288,1728067841441,-500.0,0.00038356,120]
[339852289,1728067841450,-500.0,0.00038356,120]
[339852290,1728067841460,-581.47,0.00038356,120]
[339852291,1728067841470,-500.0,0.00038356,120]
[339852292,1728067841479,-501.68,0.00038356,120]
[339852293,1728067841491,-500.0,0.00038356,120]
[339852294,1728067841501,-1232.94,0.00038356,24]
[339852295,1728067841510,-500.0,0.00038356,120]
[339852296,1728067841520,-1233.02,0.00038356,120]
[339852297,1728067841529,-500.0,0.00038356,120]
[339852298,1728067841541,-184.6369028,0.00038356,120]
[339852299,1728067841550,-500.0,0.00038356,120]
[339852300,1728067841560,-565.07,0.00038356,120]
[339852301,1728067841569,-620.41,0.00038356,120]
[339852302,1728067841579,-2591.02,0.00038356,120]
[339852303,1728067841588,-891.42,0.00038356,120]
[339852304,1728067841598,-2010.34,0.00038356,120]
[339852305,1728067841607,-500.0,0.00038356,120]
[339852306,1728067841617,-500.0,0.00038356,120]
[339852307,1728067841627,-500.0,0.00038356,120]
[339852308,1728067841637,-1149.89,0.00038356,120]
[339852309,1728067841647,-460.61309771,0.00038356,120]
[339852310,1728067841657,-500.0,0.00038356,120]
[339852311,1728067841666,-500.0,0.00038356,120]
[339852312,1728067841676,-500.0,0.00038356,120]
[339852313,1728067841685,-500.0,0.00038356,120]
[339852314,1728067841695,-586.88,0.00038356,120]
[339852315,1728067841705,-3705.12,0.00038356,120]
[339852316,1728067841714,-500.0,0.00038356,120]
[339852317,1728067841724,-500.0,0.00038356,120]
[339852318,1728067841734,-500.0,0.00038356,14]
[339852319,1728067841743,-500.0,0.00038356,120]
[339852320,1728067841753,-500.0,0.00038356,120]
[339852321,1728067841763,-4611.31,0.00038356,120]
[339852322,1728067841772,-500.0,0.00038356,120]
[339852323,1728067841782,-500.0,0.00038356,120]
[339852324,1728067841794,-500.0,0.00038356,120]
[339852325,1728067841803,-500.0,0.00038356,120]
[339852326,1728067841813,-500.0,0.00038356,120]
[339852327,1728067841823,-500.0,0.00038356,120]
[339852328,1728067841833,-500.0,0.00038356,120]
[339852329,1728067841843,-500.0,0.00038356,120]
[339852330,1728067841853,-500.0,0.00038356,120]
[339852331,1728067841863,-2027.25,0.00038356,120]
[339852332,1728067841872,-500.0,0.00038356,120]
[339852333,1728067841882,-500.0,0.00038356,120]
[339852334,1728067841892,-500.0,0.00038356,120]
[339852335,1728067841902,-500.0,0.00038356,120]
[339852336,1728067841912,-747.06,0.00038356,120]
[339852337,1728067842143,-500.0,0.00038356,120]
[339852338,1728067842153,-519.9158668,0.00038356,120]
[339852339,1728067842164,-500.0,0.00038356,120]
[339852340,1728067842180,-515.1,0.00038356,120]
[339852341,1728067842192,-500.0,0.00038356,120]
[339852342,1728067842201,-500.0,0.00038356,120]
[339852343,1728067842211,-2288.96,0.00038356,120]
[339852344,1728067842220,-501.96353193,0.00038356,120]
[339852345,1728067842230,-500.0,0.00038356,120]
[339852346,1728067842240,-500.0,0.00038356,120]
[339852347,1728067842250,-500.0,0.00038356,120]
[339852348,1728067842259,-500.0,0.00038356,120]
[339852349,1728067842268,-500.0,0.00038356,120]
[339852350,1728067842278,-500.0,0.00038356,120]
[339852351,1728067842290,-500.0,0.00038356,120]
[339852352,1728067842299,-500.0,0.00038356,120]
[339852353,1728067842308,-500.0,0.00038356,120]
[339852354,1728067842318,-500.0,0.00038356,120]
[339852355,1728067842327,-500.0,0.00038356,120]
[339852356,1728067842336,-862.84,0.00038356,120]
[339852357,1728067842345,-500.0,0.00038356,120]
[339852358,1728067842355,-500.0,0.00038356,120]
[339852359,1728067842365,-500.0,0.00038356,120]
[339852360,1728067842375,-293.18275263,0.00038356,120]
[339852361,1728067842384,-500.0,0.00038356,120]
[339852362,1728067842393,-749.47,0.00038356,120]
[339852363,1728067842403,-931.75,0.00038356,120]
[339852364,1728067842413,-500.0,0.00038356,120]
[339852365,1728067842422,-500.0,0.00038356,120]
[339852366,1728067842432,-594.75,0.00038356,120]
[339852367,1728067842442,-500.0,0.00038356,120]
[339852368,1728067842451,-500.0,0.00038356,120]
[339852369,1728067842460,-500.0,0.00038356,120]
[339852370,1728067842470,-500.0,0.00038356,120]
[339852371,1728067842479,-2529.04,0.00038356,120]
[339852372,1728067842488,-510.53907752,0.00038356,120]
[339852373,1728067842498,-500.0,0.00038356,120]
[339852374,1728067842507,-769.02,0.00038356,120]
[339852375,1728067842517,-500.0,0.00038356,120]
[339852376,1728067842526,-500.0,0.00038356,120]
[339852377,1728067842535,-500.0,0.00038356,120]
[339852378,1728067842545,-500.0,0.00038356,120]
[339852379,1728067842554,-3466.94,0.00038356,120]
[339852380,1728067842563,-500.0,0.00038356,120]
[339852381,1728067842572,-500.0,0.00038356,120]
[339852382,1728067842582,-500.0,0.00038356,120]
[339852383,1728067842591,-610.24,0.00038356,120]
[339852384,1728067842601,-500.0,0.00038356,120]
[339852385,1728067842610,-500.0,0.00038356,120]
[339852386,1728067842620,-1813.56,0.00038356,120]
[339852387,1728067842629,-920.35,0.00038356,120]
[339852388,1728067842638,-555.59,0.00038356,120]
[339852389,1728067842648,-500.0,0.00038356,120]
[339852390,1728067842657,-1021.03,0.00038356,120]
[339852391,1728067842667,-500.0,0.00038356,120]
[339852392,1728067842676,-500.0,0.00038356,120]
[339852393,1728067842686,-500.0,0.00038356,120]
[339852394,1728067842695,-500.0,0.00038356,120]
[339852395,1728067842705,-500.0,0.00038356,120]
[339852396,1728067842714,-500.0,0.00038356,120]
[339852397,1728067842723,-500.0,0.00038356,120]
[339852398,1728067842732,-500.0,0.00038356,120]
[339852399,1728067842741,-719.81,0.00038356,120]
[339852400,1728067842750,-500.0,0.00038356,120]
[339852401,1728067842760,-500.0,0.00038356,120]
[339852402,1728067842769,-500.0,0.00038356,120]
[339852403,1728067842778,-500.0,0.00038356,120]
[339852404,1728067842788,-500.0,0.00038356,120]
[339852405,1728067842797,-500.0,0.00038356,120]
[339852406,1728067842807,-500.0,0.00038356,120]
[339852407,1728067842816,-500.0,0.00038356,120]
[339852408,1728067842825,-500.0,0.00038356,120]
[339852409,1728067842834,-500.0,0.00038356,120]
[339852410,1728067842844,-500.0,0.00038356,120]
[339852411,1728067842853,-500.0,0.00038356,120]
[339852412,1728067842863,-500.0,0.00038356,120]
[339852413,1728067842873,-500.0,0.00038356,7]
[339852414,1728067842882,-500.0,0.00038356,120]
[339852415,1728067842891,-2202.05,0.00038356,120]
[339852416,1728067842900,-500.0,0.00038356,120]
[339852417,1728067842909,-500.0,0.00038356,120]
[339852418,1728067842918,-500.0,0.00038356,120]
[339852419,1728067842928,-706.4,0.00038356,120]
[339852420,1728067842937,-500.0,0.00038356,120]
[339852421,1728067842946,-500.0,0.00038356,120]
[339852422,1728067842955,-500.0,0.00038356,120]
[339852423,1728067842965,-500.0,0.00038356,120]
[339852424,1728067842974,-500.0,0.00038356,120]
[339852425,1728067842983,-500.0,0.00038356,120]
[339852426,1728067842992,-500.0,0.00038356,120]
[339852427,1728067843001,-500.0,0.00038356,120]
[339852429,1728067843010,-623.11,0.00038356,120]
[339852431,1728067843019,-500.0,0.00038356,120]
[339852432,1728067843028,-500.0,0.00038356,120]
[339852433,1728067843038,-1518.49,0.00038356,120]
[339852434,1728067843047,-500.0,0.00038356,120]
[339852435,1728067843057,-674.48,0.00038356,120]
[339852436,1728067843066,-885.79,0.00038356,120]
[339852437,1728067843075,-393.66,0.00038356,120]
[339852438,1728067843084,-500.0,0.00038356,120]
[339852439,1728067843094,-500.0,0.00038356,120]
[339852440,1728067843103,-500.0,0.00038356,120]
[339852441,1728067843112,-500.0,0.00038356,120]
[339852442,1728067843121,-500.0,0.00038356,120]
[339852443,1728067843130,-612.34,0.00038356,120]
[339852444,1728067843139,-500.0,0.00038356,120]
[339852445,1728067843148,-760.93,0.00038356,120]
[339852446,1728067843158,-500.0,0.00038356,120]
[339852447,1728067843170,-500.0,0.00038356,120]
[339852448,1728067843180,-500.0,0.00038356,120]
[339852450,1728067843189,-500.0,0.00038356,120]
[339852452,1728067843198,-500.0,0.00038356,120]
[339852454,1728067843207,-583.02,0.00038356,120]
[339852455,1728067843217,-500.0,0.00038356,120]
[339852456,1728067843226,-500.0,0.00038356,120]
[339852457,1728067843235,-500.0,0.00038356,120]
[339852458,1728067843245,-824.39,0.00038356,120]
[339852460,1728067843255,-500.0,0.00038356,120]
[339852461,1728067843264,-1518.46,0.00038356,120]
[339852463,1728067843273,-500.0,0.00038356,120]
[339852465,1728067843282,-500.0,0.00038356,120]
[339852466,1728067843293,-772.69,0.00038356,120]
[339852467,1728067843302,-500.0,0.00038356,120]
[339852468,1728067843311,-500.0,0.00038356,120]
[339852469,1728067843320,-500.0,0.00038356,120]
[339852470,1728067843329,-500.0,0.00038356,120]
[339852471,1728067843339,-500.0,0.00038356,120]
[339852472,1728067843348,-500.0,0.00038356,120]
[339852473,1728067843358,-500.0,0.00038356,120]
[339852474,1728067843367,-500.0,0.00038356,120]
[339852475,1728067843376,-500.0,0.00038356,120]
[339852476,1728067843385,-500.0,0.00038356,120]
[339852477,1728067843396,-500.0,0.00038356,120]
[339852478,1728067843405,-500.0,0.00038356,120]
[339852479,1728067843414,-500.0,0.00038356,120]
[339852480,1728067843423,-500.0,0.00038356,120]
[339852481,1728067843432,-500.0,0.00038356,120]
[339852482,1728067843441,-500.0,0.00038356,120]
[339852483,1728067843450,-769.17,0.00038356,120]
[339852484,1728067843460,-500.0,0.00038356,120]
[339852485,1728067843469,-500.0,0.00038356,120]
[339852486,1728067843478,-500.0,0.00038356,120]
[339852487,1728067843488,-500.0,0.00038356,120]
[339852488,1728067843499,-610.71,0.00038356,120]
[339852489,1728067843509,-670.83,0.00038356,120]
[339852490,1728067843518,-691.47,0.00038356,120]
[339852491,1728067843527,-500.0,0.00038356,120]
[339852492,1728067843539,-500.0,0.00038356,120]
[339852493,1728067843548,-3534.83,0.00038356,120]
[339852494,1728067843558,-500.0,0.00038356,120]
[339852495,1728067843567,-973.58,0.00038356,120]
[339852496,1728067843577,-500.0,0.00038356,120]
[339852497,1728067843586,-500.0,0.00038356,120]
[339852498,1728067843595,-500.0,0.00038356,120]
[339852499,1728067843605,-500.0,0.00038356,120]
[339852500,1728067843615,-500.0,0.00038356,120]
[339852501,1728067843624,-500.0,0.00038356,120]
[339852502,1728067843634,-925.27,0.00038356,120]
[339852503,1728067843643,-779.81,0.00038356,120]
[339852504,1728067843653,-1499.01,0.00038356,120]
[339852505,1728067843664,-731.03,0.00038356,120]
[339852506,1728067843674,-500.0,0.00038356,120]
[339852507,1728067843684,-500.0,0.00038356,120]
[339852508,1728067843693,-150.0,0.00038356,120]
[339852509,1728067843703,-500.0,0.00038356,120]
[339852510,1728067843712,-500.0,0.00038356,120]
[339852511,1728067843722,-500.0,0.00038356,120]
[339852512,1728067843732,-529.4176891,0.00038356,120]
[339852514,1728067843741,-500.0,0.00038356,120]
[339852516,1728067843751,-969.04,0.00038356,120]
[339852517,1728067843760,-500.0,0.00038356,120]
[339852518,1728067843770,-1407.4,0.00038356,120]
[339852520,1728067843779,-500.0,0.00038356,120]
[339852521,1728067843790,-1057.17,0.00038356,120]
[339852522,1728067843799,-500.0,0.00038356,120]
[339852523,1728067843809,-597.99,0.00038356,120]
[339852524,1728067843818,-257.67660905,0.00038356,120]
[339852525,1728067843829,-500.0,0.00038356,120]
[339852526,1728067843840,-603.38,0.00038356,120]
[339852527,1728067843849,-530.0,0.00038356,120]
[339852528,1728067843859,-500.0,0.00038356,120]
[339852529,1728067843869,-500.0,0.00038356,120]
[339852530,1728067843879,-500.0,0.00038356,120]
[339852531,1728067843889,-684.62,0.00038356,120]
[339852532,1728067843898,-500.0,0.00038356,120]
[339852533,1728067843907,-566.52,0.00038356,120]
[339852534,1728067843917,-1150.16,0.00038356,120]
[339852535,1728067843926,-590.06321623,0.00038356,120]
[339852536,1728067843935,-836.34,0.00038356,120]
[339852537,1728067843945,-836.39,0.00038356,120]
[339852538,1728067843954,-3485.33,0.00038356,120]
[339852539,1728067843963,-687.18,0.00038356,120]
[339852540,1728067843973,-823.06,0.00038356,120]
[339852541,1728067843982,-500.0,0.00038356,120]
[339852542,1728067843991,-560.25,0.00038356,120]
[339852543,1728067844001,-500.0,0.00038356,120]
[339852544,1728067844011,-494.99194541,0.00038356,120]
[339852545,1728067844020,-500.0,0.00038356,120]
[339852546,1728067844031,-2136.3,0.00038356,120]